[Event "RUS-IND U14 Match 2019"]
[Site "Sochi"]
[Date "2019.06.06"]
[Round "1.39"]
[White "Ravi Teja R"]
[Black "Kirchei, Viktoriia"]
[Result "1/2-1/2"]
[ECO "C41"]
[WhiteElo "1047"]
[BlackElo "2026"]
[Annotator "NA RC"]
[PlyCount "116"]
[EventDate "2019.06.02"]
[EventType "team-tourn"]
[EventCountry "RUS"]
[SourceTitle "playchess.com"]
[Source "ChessBase"]
[SourceQuality "1"]
[WhiteTeam "India"]
[BlackTeam "Russia"]
[WhiteTeamCountry "IND"]
[TimeControl "5400+30"]

1. e4 {[%emt 0:00:43]} d6 {[%emt 0:00:00]} 2. d4 {[%emt 0:00:00]} Nf6 {[%emt 0:00:00]} 3. Nc3 {[%emt 0:00:00]} e5 {[%emt 0:00:00]} 4. Nf3 {[%emt 0:00:41]} Nbd7 {[%emt 0:00:27]} 5. Bc4 {[%emt 0:01:34]} Be7 {[%emt 0:00:23]} 6. O-O {[%emt 0:01:11]} O-O {[%emt 0:03:20]} 7. h3 {[%emt 0:02:11]} a6 {[%emt 0:00:00]} 8. a4 {[%emt 0:00:17]} b6 {[%emt 0:00:35]} 9. Re1 {[%emt 0:06:34]} Bb7 {[%emt 0:00:15]} 10. dxe5 {[%emt 0:03:18]} dxe5 {[%emt 0:00:00]} 11. Nd5 {[%emt 0:00:56]} Nxd5 {[%emt 0:00:21]} 12. Bxd5 {[%emt 0:01:51]} c6 {[%emt 0:00:51]} 13. Ba2 {[%emt 0:05:49]} Qc7 {[%emt 0:00:36]} 14. c3 {[%emt 0:01:05]} Rad8 {[%emt 0:02:10]} 15. Qc2 {[%emt 0:12:45]} a5 {[%emt 0:09:02]} 16. Bc4 {[%emt 0:03:55]} Nc5 {[%emt 0:03:01]} 17. Be3 {[%emt 0:05:40]} Ba6 {[%emt 0:03:14]} 18. Bxa6 {[%emt 0:00:18]} Nxa6 {[%emt 0:00:08]} 19. Rad1 {[%emt 0:05:20]} Nc5 {[%emt 0:01:12]} 20. Bxc5 {[%emt 0:02:00]} Bxc5 {[%emt 0:00:19]} 21. Rxd8 {[%emt 0:06:47]} Rxd8 {[%emt 0:00:14]} 22. Rd1 {[%emt 0:00:35]} Rxd1+ {[%emt 0:02:58]} 23. Qxd1 {[%emt 0:00:00]} Qd6 {[%emt 0:01:44]} 24. Qe2 {[%emt 0:09:28]} g6 {[%emt 0:09:12]} 25. Nd2 {[%emt 0:02:51]} Qc7 {[%emt 0:12:20]} 26. Kf1 {[%emt 0:05:52]} Bf8 {[%emt 0:05:31]} 27. Qc4 {[%emt 0:02:45]} Bh6 {[%emt 0:13:38]} 28. Nf3 {[%emt 0:00:47]} Qd6 {[%emt 0:01:21]} 29. Ke2 {[%emt 0:00:17]} Bc1 {[%emt 0:01:43]} 30. b3 {[%emt 0:03:05]} Kg7 {[%emt 0:04:22]} 31. Qd3 {[%emt 0:00:44]} Ba3 {[%emt 0:00:19]} 32. Qxd6 {[%emt 0:06:11]} Bxd6 {[%emt 0:00:37]} 33. Kd3 {[%emt 0:01:37]} Kf6 {[%emt 0:01:04]} 34. Ne1 {[%emt 0:03:04]} Bc5 {[%emt 0:02:27]} 35. f3 {[%emt 0:01:09]} b5 {[%emt 0:00:52]} 36. Nc2 {[%emt 0:01:43]} bxa4 {[%emt 0:01:02]} 37. bxa4 {[%emt 0:00:02]} Ke6 {[%emt 0:00:44]} 38. Na1 {[%emt 0:01:46]} Kd6 {[%emt 0:01:21]} 39. Nb3 {[%emt 0:00:00]} Bb6 {[%emt 0:00:05]} 40. Kc4 {[%emt 0:00:42]} h6 {[%emt 0:03:44]} 41. Kd3 {[%emt 0:01:43]} Bc7 {[%emt 0:02:23]} 42. Nd2 {[%emt 0:00:35]} f6 {[%emt 0:02:18]} 43. Nc4+ {[%emt 0:00:26]} Kc5 {[%emt 0:00:48]} 44. Ne3 {[%emt 0:01:40]} Bd8 {[%emt 0:02:41]} 45. h4 {[%emt 0:00:46]} Be7 {[%emt 0:04:53]} 46. h5 {[%emt 0:01:39]} gxh5 {[%emt 0:00:21]} 47. Nf5 {[%emt 0:00:01]} Bf8 {[%emt 0:00:48]} 48. Ng3 {[%emt 0:00:06]} Kd6 {[%emt 0:01:40]} 49. Nxh5 {[%emt 0:00:14]} Ke6 {[%emt 0:00:06]} 50. Ng3 {[%emt 0:00:16]} Kd7 {[%emt 0:03:55]} 51. Nf5 {[%emt 0:01:26]} Ke6 {[%emt 0:00:13]} 52. Ke2 {[%emt 0:00:58]} Kf7 {[%emt 0:01:29]} 53. Ne3 {[%emt 0:00:21]} Bd6 {[%emt 0:00:15]} 54. Nc4 {[%emt 0:00:41]} Bc7 {[%emt 0:00:11]} 55. Ne3 {[%emt 0:00:01]} Bd6 {[%emt 0:00:15]} 56. Nf5 {[%emt 0:00:44]} Bf8 {[%emt 0:00:28]} 57. Kf2 {[%emt 0:00:24]} Bc5+ {[%emt 0:00:09]} 58. Ke2 {[%emt 0:00:00]} Bf8 {[%emt 0:00:26]} 1/2-1/2

[Event "RUS-IND U14 Match 2019"]
[Site "Sochi"]
[Date "2019.06.06"]
[Round "2.37"]
[White "Murzin, Volodar"]
[Black "Mendonca, Leon Luke"]
[Result "1-0"]
[ECO "B52"]
[WhiteElo "2418"]
[BlackElo "2405"]
[Annotator "RC"]
[PlyCount "71"]
[EventDate "2019.06.02"]
[EventType "team-tourn"]
[EventCountry "RUS"]
[SourceTitle "playchess.com"]
[Source "ChessBase"]
[SourceQuality "1"]
[WhiteTeam "Russia"]
[BlackTeam "India"]
[WhiteTeamCountry "RUS"]
[BlackTeamCountry "IND"]
[TimeControl "5400+30"]

1. e4 {[%emt 0:00:00]} c5 {[%emt 0:00:00]} 2. Nf3 {[%emt 0:00:00]} d6 {[%emt 0:00:06]} 3. Bb5+ {[%emt 0:00:00]} Bd7 {[%emt 0:00:00]} 4. Bxd7+ {[%emt 0:00:00]} Qxd7 {[%emt 0:00:00]} 5. O-O {[%emt 0:00:00]} Nc6 {[%emt 0:00:07]} 6. c3 {[%emt 0:00:06]} Nf6 {[%emt 0:00:15]} 7. d4 {[%emt 0:00:08]} Nxe4 {[%emt 0:00:47]} 8. d5 {[%emt 0:00:17]} Nd8 {[%emt 0:15:09]} 9. Re1 {[%emt 0:01:54]} Nf6 {[%emt 0:06:40]} 10. Bg5 {[%emt 0:01:50]} h6 {[%emt 0:01:57]} 11. Bxf6 {[%emt 0:02:29]} gxf6 {[%emt 0:10:13]} 12. Nbd2 {[%emt 0:02:08]} f5 {[%emt 0:00:08]} 13. Nh4 {[%emt 0:00:29]} Rg8 {[%emt 0:21:45]} 14. Qf3 {[%emt 0:11:46]} Rg5 {[%emt 0:02:21]} 15. g3 {[%emt 0:08:08]} e5 {[%emt 0:09:19]} 16. dxe6 {[%emt 0:04:25]} fxe6 {[%emt 0:06:19]} 17. Nxf5 {[%emt 0:02:27]} Qf7 {[%emt 0:00:57]} 18. Ne3 {[%emt 0:01:52]} Qxf3 {[%emt 0:01:30]} 19. Nxf3 {[%emt 0:01:23]} Rg8 {[%emt 0:03:33]} 20. Rad1 {[%emt 0:00:06]} Be7 {[%emt 0:02:26]} 21. Nc4 {[%emt 0:01:46]} Kd7 {[%emt 0:03:08]} 22. Nce5+ {[%emt 0:07:13]} Kc7 {[%emt 0:00:47]} 23. Nd3 {[%emt 0:03:59]} Bf6 {[%emt 0:01:31]} 24. Nf4 {[%emt 0:00:43]} Kd7 {[%emt 0:03:39]} 25. Nd2 {[%emt 0:02:44]} Be7 {[%emt 0:00:15]} 26. Nc4 {[%emt 0:01:46]} Rb8 {[%emt 0:03:07]} 27. Ng6 {[%emt 0:03:18]} Nf7 {[%emt 0:05:06]} 28. Nge5+ {[%emt 0:07:05]} Nxe5 {[%emt 0:00:50]} 29. Nxe5+ {[%emt 0:00:15]} Kc7 {[%emt 0:01:13]} 30. Nd3 {[%emt 0:00:02]} e5 {[%emt 0:00:30]} 31. f4 {[%emt 0:00:34]} Rbd8 {[%emt 0:00:38]} 32. fxe5 {[%emt 0:03:06]} d5 {[%emt 0:00:38]} 33. Rf1 {[%emt 0:00:29]} Rgf8 {[%emt 0:00:30]} 34. Nf4 {[%emt 0:00:14]} Kc6 {[%emt 0:00:33]} 35. Kg2 {[%emt 0:03:07]} Bg5 {[%emt 0:00:27]} 36. Ne6 {[%emt 0:00:00]} 1-0

[Event "RUS-IND U14 Match 2019"]
[Site "Sochi"]
[Date "2019.06.06"]
[Round "2.40"]
[White "Nur-Mukhametova, Alisa"]
[Black "Ravi Teja R"]
[Result "1-0"]
[ECO "B53"]
[WhiteElo "1983"]
[BlackElo "1047"]
[Annotator "NA RC"]
[PlyCount "119"]
[EventDate "2019.06.02"]
[EventType "team-tourn"]
[EventCountry "RUS"]
[SourceTitle "playchess.com"]
[Source "ChessBase"]
[SourceQuality "1"]
[WhiteTeam "Russia"]
[BlackTeam "India"]
[WhiteTeamCountry "RUS"]
[BlackTeamCountry "IND"]
[TimeControl "5400+30"]

1. e4 {[%emt 0:00:00]} c5 {[%emt 0:00:26]} 2. Nf3 {[%emt 0:00:00]} d6 {[%emt 0:00:40]} 3. d4 {[%emt 0:00:00]} Nf6 {[%emt 0:00:00]} 4. Nc3 {[%emt 0:00:00]} cxd4 {[%emt 0:00:00]} 5. Qxd4 {[%emt 0:00:19]} Nc6 {[%emt 0:01:25]} 6. Bb5 {[%emt 0:00:00]} Bd7 {[%emt 0:00:16]} 7. Bxc6 {[%emt 0:00:00]} Bxc6 {[%emt 0:01:19]} 8. Bg5 {[%emt 0:00:46]} h6 {[%emt 0:09:06]} 9. Bxf6 {[%emt 0:07:28]} gxf6 {[%emt 0:00:20]} 10. O-O-O {[%emt 0:00:08]} Qa5 {[%emt 0:05:34]} 11. Kb1 {[%emt 0:02:04]} Rg8 {[%emt 0:05:09]} 12. Nh4 {[%emt 0:11:04]} Rc8 {[%emt 0:13:44]} 13. g3 {[%emt 0:06:13]} Bd7 {[%emt 0:10:43]} 14. f4 {[%emt 0:05:45]} f5 {[%emt 0:07:36]} 15. e5 {[%emt 0:10:53]} Bg7 {[%emt 0:05:08]} 16. Qd3 {[%emt 0:04:05]} Rxc3 {[%emt 0:10:43]} 17. Qxc3 {[%emt 0:01:53]} Qxc3 {[%emt 0:00:16]} 18. bxc3 {[%emt 0:00:02]} dxe5 {[%emt 0:00:07]} 19. fxe5 {[%emt 0:04:32]} Bxe5 {[%emt 0:00:08]} 20. Rd3 {[%emt 0:04:22]} Bd6 {[%emt 0:12:28]} 21. Re1 {[%emt 0:04:25]} Kf8 {[%emt 0:00:02]} 22. Nf3 {[%emt 0:05:55]} Bc6 {[%emt 0:03:21]} 23. Nd4 {[%emt 0:01:19]} Be4 {[%emt 0:00:21]} 24. Rde3 {[%emt 0:00:48]} e6 {[%emt 0:03:09]} 25. Kb2 {[%emt 0:08:00]} Kg7 {[%emt 0:03:19]} 26. Nb3 {[%emt 0:06:15]} Rc8 {[%emt 0:02:15]} 27. Nd2 {[%emt 0:00:33]} Bc6 {[%emt 0:00:52]} 28. Rd3 {[%emt 0:00:41]} Be7 {[%emt 0:00:14]} 29. Nb3 {[%emt 0:01:12]} Bf6 {[%emt 0:01:00]} 30. Nd4 {[%emt 0:01:23]} Be4 {[%emt 0:00:08]} 31. Rdd1 {[%emt 0:00:24]} a6 {[%emt 0:00:18]} 32. g4 {[%emt 0:01:37]} Kh7 {[%emt 0:04:43]} 33. gxf5 {[%emt 0:01:00]} Bxf5 {[%emt 0:01:03]} 34. Re3 {[%emt 0:04:31]} Bg6 {[%emt 0:00:24]} 35. Nb3 {[%emt 0:00:18]} Rc7 {[%emt 0:00:00]} 36. Rd6 {[%emt 0:01:10]} Be7 {[%emt 0:00:17]} 37. Rb6 {[%emt 0:01:04]} Rd7 {[%emt 0:00:49]} 38. Re2 {[%emt 0:01:16]} Bf6 {[%emt 0:00:22]} 39. Re3 {[%emt 0:00:59]} Be7 {[%emt 0:00:28]} 40. Re2 {[%emt 0:00:52]} Bd8 {[%emt 0:00:32]} 41. Rb4 {[%emt 0:00:55]} Rc7 {[%emt 0:00:33]} 42. a4 {[%emt 0:00:15]} Bf6 {[%emt 0:00:30]} 43. Re3 {[%emt 0:00:40]} Bg7 {[%emt 0:00:38]} 44. Na5 {[%emt 0:00:20]} Rd7 {[%emt 0:00:31]} 45. Re2 {[%emt 0:01:06]} Bh5 {[%emt 0:00:27]} 46. Rf2 {[%emt 0:02:31]} Rc7 {[%emt 0:00:01]} 47. Rc4 {[%emt 0:00:29]} Rd7 {[%emt 0:00:04]} 48. Nb3 {[%emt 0:00:24]} b5 {[%emt 0:00:56]} 49. axb5 {[%emt 0:00:30]} axb5 {[%emt 0:00:56]} 50. Rb4 {[%emt 0:00:59]} Rd5 {[%emt 0:00:31]} 51. Nd4 {[%emt 0:00:26]} Rc5 {[%emt 0:00:01]} 52. Nxb5 {[%emt 0:00:12]} f5 {[%emt 0:01:01]} 53. Nd4 {[%emt 0:01:03]} Kg6 {[%emt 0:00:33]} 54. Rg2+ {[%emt 0:00:36]} Bg4 {[%emt 0:00:30]} 55. h3 {[%emt 0:00:26]} e5 {[%emt 0:00:30]} 56. Nb3 {[%emt 0:00:24]} Rc8 {[%emt 0:00:30]} 57. hxg4 {[%emt 0:00:11]} f4 {[%emt 0:00:04]} 58. Nd2 {[%emt 0:00:14]} Rf8 {[%emt 0:00:43]} 59. Nf3 {[%emt 0:00:06]} Rc8 {[%emt 0:00:01]} 60. Re4 {[%emt 0:00:25]} 1-0

[Event "RUS-IND U14 Match 2019"]
[Site "Sochi"]
[Date "2019.06.06"]
[Round "3.40"]
[White "Ravi Teja R"]
[Black "Nur-Mukhametova, Alisa"]
[Result "1-0"]
[ECO "C03"]
[WhiteElo "1047"]
[BlackElo "1983"]
[Annotator "NA RC"]
[PlyCount "71"]
[EventDate "2019.06.02"]
[EventType "team-tourn"]
[EventCountry "RUS"]
[SourceTitle "playchess.com"]
[Source "ChessBase"]
[SourceQuality "1"]
[WhiteTeam "India"]
[BlackTeam "Russia"]
[WhiteTeamCountry "IND"]
[BlackTeamCountry "RUS"]
[TimeControl "5400+30"]

1. e4 {[%emt 0:00:00]} e6 {[%emt 0:00:00]} 2. d4 {[%emt 0:00:00]} d5 {[%emt 0:00:00]} 3. Nd2 {[%emt 0:00:00]} Be7 {[%emt 0:00:03]} 4. e5 {[%emt 0:00:00]} c5 {[%emt 0:00:12]} 5. c3 {[%emt 0:00:21]} Nc6 {[%emt 0:00:16]} 6. Bd3 {[%emt 0:02:14]} Nh6 {[%emt 0:00:50]} 7. Ndf3 {[%emt 0:03:30]} cxd4 {[%emt 0:02:27]} 8. cxd4 {[%emt 0:00:10]} Nf5 {[%emt 0:00:39]} 9. Ne2 {[%emt 0:01:56]} O-O {[%emt 0:00:19]} 10. O-O {[%emt 0:02:02]} Bd7 {[%emt 0:01:51]} 11. a3 {[%emt 0:13:40]} Rc8 {[%emt 0:04:23]} 12. b4 {[%emt 0:01:01]} b5 {[%emt 0:01:24]} 13. Rb1 {[%emt 0:03:42]} Qb6 {[%emt 0:00:31]} 14. g4 {[%emt 0:14:12]} Nh4 {[%emt 0:03:53]} 15. Nxh4 {[%emt 0:03:16]} Bxh4 {[%emt 0:13:45]} 16. g5 {[%emt 0:00:30]} h6 {[%emt 0:00:03]} 17. gxh6 {[%emt 0:01:56]} g6 {[%emt 0:08:03]} 18. Be3 {[%emt 0:01:25]} Kh7 {[%emt 0:00:17]} 19. Nf4 {[%emt 0:01:48]} Bg5 {[%emt 0:04:11]} 20. Nh5 {[%emt 0:04:37]} Bxe3 {[%emt 0:08:51]} 21. Nf6+ {[%emt 0:02:39]} Kh8 {[%emt 0:05:52]} 22. fxe3 {[%emt 0:01:35]} Qd8 {[%emt 0:00:02]} 23. Qf3 {[%emt 0:09:18]} Rc7 {[%emt 0:02:09]} 24. Rbc1 {[%emt 0:01:01]} Bc8 {[%emt 0:01:34]} 25. h4 {[%emt 0:00:27]} a6 {[%emt 0:00:32]} 26. Kh2 {[%emt 0:01:55]} Bb7 {[%emt 0:03:37]} 27. h5 {[%emt 0:00:46]} Qe7 {[%emt 0:02:07]} 28. Rg1 {[%emt 0:01:04]} Qd8 {[%emt 0:01:17]} 29. Bxg6 {[%emt 0:02:48]} fxg6 {[%emt 0:00:46]} 30. hxg6 {[%emt 0:00:29]} Rg7 {[%emt 0:03:09]} 31. hxg7+ {[%emt 0:05:47]} Kxg7 {[%emt 0:04:28]} 32. Kg3 {[%emt 0:00:05]} Ne7 {[%emt 0:00:10]} 33. Rh1 {[%emt 0:01:03]} Nf5+ {[%emt 0:00:02]} 34. Kf2 {[%emt 0:00:32]} Rh8 {[%emt 0:00:54]} 35. Rxh8 {[%emt 0:01:49]} Kxh8 {[%emt 0:00:16]} 36. Qh5+ {[%emt 0:00:15]} 1-0

[Event "RUS-IND U14 Match 2019"]
[Site "Sochi"]
[Date "2019.06.06"]
[Round "4.3"]
[White "Kirchei, Viktoriia"]
[Black "Ravi Teja R"]
[Result "0-1"]
[ECO "C63"]
[WhiteElo "2026"]
[BlackElo "1047"]
[Annotator "NA RC"]
[PlyCount "70"]
[EventDate "2019.06.02"]
[EventType "team-tourn"]
[EventCountry "RUS"]
[SourceTitle "playchess.com"]
[Source "ChessBase"]
[SourceQuality "1"]
[WhiteTeam "Russia"]
[BlackTeam "India"]
[BlackTeamCountry "IND"]
[TimeControl "5400+30"]

1. e4 {[%emt 0:00:00]} e5 {[%emt 0:00:15]} 2. Nf3 {[%emt 0:00:00]} Nc6 {[%emt 0:00:00]} 3. Bb5 {[%emt 0:00:00]} f5 {[%emt 0:00:22]} 4. d3 {[%emt 0:05:26]} fxe4 {[%emt 0:00:07]} 5. dxe4 {[%emt 0:00:00]} Nf6 {[%emt 0:00:06]} 6. O-O {[%emt 0:02:10]} Nxe4 {[%emt 0:09:15]} 7. Re1 {[%emt 0:03:14]} d5 {[%emt 0:02:00]} 8. Nxe5 {[%emt 0:04:06]} Qf6 {[%emt 0:00:06]} 9. Nd3 {[%emt 0:14:00]} Bd6 {[%emt 0:27:42]} 10. Qh5+ {[%emt 0:10:33]} Qf7 {[%emt 0:01:56]} 11. Qxf7+ {[%emt 0:00:00]} Kxf7 {[%emt 0:00:07]} 12. c4 {[%emt 0:00:30]} Nd4 {[%emt 0:04:19]} 13. Ba4 {[%emt 0:05:20]} Bf5 {[%emt 0:11:38]} 14. cxd5 {[%emt 0:03:27]} b5 {[%emt 0:03:25]} 15. Be3 {[%emt 0:02:01]} bxa4 {[%emt 0:04:44]} 16. Bxd4 {[%emt 0:01:01]} Rhe8 {[%emt 0:07:49]} 17. Na3 {[%emt 0:02:27]} Nf6 {[%emt 0:03:02]} 18. Ne5+ {[%emt 0:02:58]} Kg8 {[%emt 0:00:42]} 19. Nb5 {[%emt 0:08:08]} Nxd5 {[%emt 0:02:45]} 20. Nxd6 {[%emt 0:01:09]} cxd6 {[%emt 0:00:02]} 21. Nc4 {[%emt 0:00:19]} Red8 {[%emt 0:00:00]} 22. Rad1 {[%emt 0:01:06]} Rac8 {[%emt 0:03:04]} 23. Na5 {[%emt 0:07:10]} Nf4 {[%emt 0:03:10]} 24. Bxa7 {[%emt 0:06:28]} Rc2 {[%emt 0:01:14]} 25. Bd4 {[%emt 0:07:05]} Rb8 {[%emt 0:05:43]} 26. Bc3 {[%emt 0:03:18]} Ne2+ {[%emt 0:02:11]} 27. Kf1 {[%emt 0:00:05]} Nxc3 {[%emt 0:00:08]} 28. bxc3 {[%emt 0:00:00]} Rbb2 {[%emt 0:00:26]} 29. Nc4 {[%emt 0:01:56]} Rxf2+ {[%emt 0:00:04]} 30. Kg1 {[%emt 0:00:04]} Rxg2+ {[%emt 0:00:04]} 31. Kh1 {[%emt 0:00:06]} Rxh2+ {[%emt 0:00:19]} 32. Kg1 {[%emt 0:00:03]} Rbg2+ {[%emt 0:00:59]} 33. Kf1 {[%emt 0:00:05]} Bh3 {[%emt 0:01:26]} 34. Re8+ {[%emt 0:03:35]} Kf7 {[%emt 0:00:03]} 35. Nxd6+ {[%emt 0:00:10]} Kg6 {[%emt 0:00:03]} 0-1

[Event "RUS-IND U14 Match 2019"]
[Site "Sochi"]
[Date "2019.06.06"]
[Round "5.2"]
[White "Mendonca, Leon Luke"]
[Black "Tsvetkov, Andrey"]
[Result "1-0"]
[ECO "A00"]
[WhiteElo "2405"]
[BlackElo "2323"]
[Annotator "RC"]
[PlyCount "107"]
[EventDate "2019.06.02"]
[EventType "team-tourn"]
[EventCountry "RUS"]
[SourceTitle "playchess.com"]
[Source "ChessBase"]
[SourceQuality "1"]
[WhiteTeam "India"]
[BlackTeam "Russia"]
[WhiteTeamCountry "IND"]
[BlackTeamCountry "RUS"]
[TimeControl "5400+30"]

1. Nf3 {[%emt 0:00:00]} d5 {[%emt 0:00:00]} 2. b4 {[%emt 0:00:00]} e6 {[%emt 0:01:58]} 3. Bb2 {[%emt 0:00:57]} Nf6 {[%emt 0:00:05]} 4. a3 {[%emt 0:00:28]} a5 {[%emt 0:09:02]} 5. b5 {[%emt 0:00:55]} c5 {[%emt 0:01:07]} 6. e3 {[%emt 0:03:18]} Bd6 {[%emt 0:01:49]} 7. d3 {[%emt 0:02:44]} O-O {[%emt 0:00:43]} 8. Nbd2 {[%emt 0:01:52]} Nbd7 {[%emt 0:02:42]} 9. c4 {[%emt 0:00:52]} b6 {[%emt 0:02:15]} 10. Be2 {[%emt 0:00:55]} Bb7 {[%emt 0:01:33]} 11. O-O {[%emt 0:02:01]} Qe7 {[%emt 0:06:26]} 12. Re1 {[%emt 0:10:44]} Rad8 {[%emt 0:08:49]} 13. Qc2 {[%emt 0:12:54]} Rfe8 {[%emt 0:05:36]} 14. h3 {[%emt 0:03:49]} e5 {[%emt 0:11:59]} 15. cxd5 {[%emt 0:03:11]} Nxd5 {[%emt 0:01:54]} 16. Bf1 {[%emt 0:08:28]} Bb8 {[%emt 0:07:35]} 17. Rad1 {[%emt 0:11:13]} Nc7 {[%emt 0:09:40]} 18. d4 {[%emt 0:14:44]} e4 {[%emt 0:12:04]} 19. Ne5 {[%emt 0:00:29]} Nd5 {[%emt 0:00:25]} 20. Nc6 {[%emt 0:05:59]} Bxc6 {[%emt 0:01:40]} 21. bxc6 {[%emt 0:00:31]} Qd6 {[%emt 0:00:30]} 22. g3 {[%emt 0:00:19]} Qxc6 {[%emt 0:00:04]} 23. Nxe4 {[%emt 0:01:45]} Qg6 {[%emt 0:01:29]} 24. Bg2 {[%emt 0:03:58]} cxd4 {[%emt 0:01:22]} 25. Rxd4 {[%emt 0:02:08]} N7f6 {[%emt 0:03:26]} 26. Red1 {[%emt 0:05:32]} Rc8 {[%emt 0:03:43]} 27. Nxf6+ {[%emt 0:00:47]} Qxf6 {[%emt 0:00:36]} 28. Qb3 {[%emt 0:00:31]} Ne7 {[%emt 0:01:39]} 29. Rb4 {[%emt 0:01:27]} Qf5 {[%emt 0:02:15]} 30. Rxb6 {[%emt 0:01:22]} Rc2 {[%emt 0:01:34]} 31. Rf1 {[%emt 0:00:49]} Ba7 {[%emt 0:00:38]} 32. g4 {[%emt 0:00:29]} Qc8 {[%emt 0:00:46]} 33. Rb7 {[%emt 0:00:13]} Rc7 {[%emt 0:00:00]} 34. Rxc7 {[%emt 0:00:14]} Qxc7 {[%emt 0:00:00]} 35. Qc3 {[%emt 0:00:22]} Qxc3 {[%emt 0:00:59]} 36. Bxc3 {[%emt 0:00:31]} Bc5 {[%emt 0:00:00]} 37. a4 {[%emt 0:00:00]} Bb4 {[%emt 0:00:59]} 38. Bxb4 {[%emt 0:00:00]} axb4 {[%emt 0:00:31]} 39. a5 {[%emt 0:00:42]} Rb8 {[%emt 0:00:31]} 40. a6 {[%emt 0:00:00]} Nc8 {[%emt 0:00:41]} 41. Bb7 {[%emt 0:00:27]} Na7 {[%emt 0:00:00]} 42. Rb1 {[%emt 0:00:00]} Rd8 {[%emt 0:00:10]} 43. Rxb4 {[%emt 0:00:11]} Rd6 {[%emt 0:00:00]} 44. Rd4 {[%emt 0:02:41]} Rxd4 {[%emt 0:00:12]} 45. exd4 {[%emt 0:00:00]} Kf8 {[%emt 0:00:00]} 46. Kg2 {[%emt 0:00:12]} Nb5 {[%emt 0:00:18]} 47. Bc6 {[%emt 0:00:15]} Na7 {[%emt 0:00:02]} 48. Bd5 {[%emt 0:00:08]} Ke7 {[%emt 0:00:10]} 49. Kf3 {[%emt 0:00:07]} g5 {[%emt 0:00:02]} 50. Ke4 {[%emt 0:00:05]} f6 {[%emt 0:00:05]} 51. Bb7 {[%emt 0:00:57]} Kd6 {[%emt 0:00:10]} 52. Kd3 {[%emt 0:00:10]} Nb5 {[%emt 0:00:08]} 53. Kc4 {[%emt 0:00:08]} Na7 {[%emt 0:00:02]} 54. Kb4 {[%emt 0:00:04]} 1-0

[Event "RUS-IND U14 Match 2019"]
[Site "Sochi"]
[Date "2019.06.06"]
[Round "5.3"]
[White "Ravi Teja R"]
[Black "Kirchei, Viktoriia"]
[Result "1-0"]
[ECO "B23"]
[WhiteElo "1047"]
[BlackElo "2026"]
[Annotator "NA RC"]
[PlyCount "83"]
[EventDate "2019.06.02"]
[EventType "team-tourn"]
[EventCountry "RUS"]
[SourceTitle "playchess.com"]
[Source "ChessBase"]
[SourceQuality "1"]
[WhiteTeam "India"]
[BlackTeam "Russia"]
[WhiteTeamCountry "IND"]
[TimeControl "5400+30"]

1. e4 {[%emt 0:00:00]} c5 {[%emt 0:00:00]} 2. Nc3 {[%emt 0:00:00]} Nc6 {[%emt 0:00:01]} 3. Bb5 {[%emt 0:00:12]} e5 {[%emt 0:04:28]} 4. Bxc6 {[%emt 0:01:42]} (4. Nge2 Bd6 5. a3 Nge7 6. Bc4 a6 7. O-O b5 8. Ba2 O-O 9. d3 Nd4 10. f4 Nxe2+ 11. Qxe2 exf4 {1-0 (39) Asis Gargatagli,H (2529)-Fluvia Poyatos,J (2493) Barcelona 2018}) 4... bxc6 {[%emt 0:00:26]} 5. d3 {[%emt 0:00:18]} d6 {[%emt 0:01:14]} 6. f4 {[%emt 0:03:46] B23: Closed Sicilian: Lines without g3} exf4 {[%emt 0:05:46]} 7. Bxf4 {[%emt 0:02:17]} Rb8 {[%emt 0:02:40]} 8. b3 {[%emt 0:07:01]} g6 $146 {[%emt 0:07:00]} ({Predecessor:} 8... g5 9. Be3 Bg7 10. Nge2 Bg4 11. d4 Qe7 12. Qd2 Nf6 13. Bxg5 {½-½ (31) Staf,G (2016)-Saule,Z (2057) ICCF email 2008}) 9. Nf3 {[%emt 0:03:41]} Bg7 {[%emt 0:00:56]} 10. Bd2 {[%emt 0:00:27]} Bg4 {[%emt 0:03:42]} 11. O-O {[%emt 0:03:42]} Ne7 {[%emt 0:06:33]} 12. Qe1 {[%emt 0:01:37]} h6 {[%emt 0:13:43]} 13. Qh4 {[%emt 0:08:47]} Qd7 {[%emt 0:01:03]} 14. Rae1 {[%emt 0:12:46]} g5 {[%emt 0:02:02]} 15. Qg3 {[%emt 0:03:14]} Bxf3 {[%emt 0:04:37]} 16. Qxf3 {[%emt 0:02:27]} Ng6 {[%emt 0:01:18]} ({Black should play} 16... O-O $1 $14) 17. Ne2 {[%emt 0:05:57]} Ne5 {[%emt 0:01:15]} 18. Qh5 {[%emt 0:01:45]} Qg4 {[%emt 0:05:33]} 19. Qxg4 {[%emt 0:05:11]} Nxg4 {[%emt 0:00:08]} 20. h3 {[%emt 0:00:08]} Ne5 {[%emt 0:00:54]} 21. Ng3 {[%emt 0:00:20]} Ng6 {[%emt 0:05:22]} 22. Nf5 {[%emt 0:05:11]} Be5 {[%emt 0:01:28]} 23. c3 {[%emt 0:01:12]} Rd8 {[%emt 0:00:56]} 24. d4 {[%emt 0:06:01]} Bf4 {[%emt 0:00:57]} 25. Bxf4 {[%emt 0:00:07]} Nxf4 {[%emt 0:00:28]} 26. e5 {[%emt 0:00:56]} d5 {[%emt 0:05:35]} 27. Nd6+ {[%emt 0:00:40]} Ke7 {[%emt 0:01:26]} 28. g3 {[%emt 0:00:53]} Nh5 {[%emt 0:00:22]} 29. Rxf7+ {[%emt 0:06:00]} Ke6 {[%emt 0:00:04]} 30. Rc7 {[%emt 0:03:40]} cxd4 {[%emt 0:01:07]} 31. cxd4 {[%emt 0:00:09]} Nxg3 {[%emt 0:00:16]} 32. Rxc6 {[%emt 0:01:26]} Kd7 {[%emt 0:00:28]} 33. Ra6 {[%emt 0:04:54]} Ra8 {[%emt 0:01:33]} 34. Kh2 {[%emt 0:00:02]} Nh5 {[%emt 0:00:26]} 35. Nf5 {[%emt 0:00:56]} Rhf8 {[%emt 0:00:46]} 36. Rd6+ {[%emt 0:01:33]} Ke8 $18 {[%emt 0:00:06]} 37. Rxh6 {[%emt 0:03:11]} Rxf5 {[%emt 0:00:07]} 38. Rxh5 {[%emt 0:00:30]} Ke7 {[%emt 0:00:07]} 39. Rh7+ {[%emt 0:01:37]} Ke6 {[%emt 0:00:07]} 40. Rc1 {[%emt 0:00:29]} Rf2+ {[%emt 0:00:07]} 41. Kg3 {[%emt 0:00:04]} Rxa2 {[%emt 0:00:00]} 42. Rf1 {[%emt 0:00:03]} 1-0